bitfinex/quotes_SOLUSD_20251204
["timestamp","ask_amount","ask_price","bid_price","bid_amount"]
[1764856999561,3.55683863,142.31,142.28,7.02807241]
[1764857002563,9.90347317,142.32,142.28,7.02807241]
[1764857002766,10.58347317,142.32,142.28,7.74807241]
[1764857002966,9.90347317,142.32,142.28,7.74807241]
[1764857003262,0.68,142.31,142.28,7.74807241]
[1764857003465,0.68,142.31,142.28,7.02807241]
[1764857003760,9.90347317,142.32,142.28,7.74807241]
[1764857004070,10.58347317,142.32,142.28,7.74807241]
[1764857004969,3.55683863,142.32,142.28,7.02807241]
[1764857005184,3.55683863,142.34,142.3,7.02740688]
[1764857005654,14.78395167,142.37,142.3,7.02740688]
[1764857005655,3.55683863,142.36,142.31,3.59683863]
[1764857005848,3.55683863,142.36,142.32,2.87683863]
[1764857006172,2.87683863,142.36,142.32,2.87683863]
[1764857006462,0.68,142.35,142.31,2.87683863]
[1764857006654,0.68,142.35,142.32,0.72]
[1764857006856,0.68,142.35,142.33,7.02592566]
[1764857007268,2.87683863,142.36,142.33,7.02592566]
[1764857007454,3.55683863,142.37,142.33,10.62276429]
[1764857007768,10.57980692,142.39,142.34,3.59683863]
[1764857008168,3.55683863,142.38,142.34,2.87683863]
[1764857008380,0.68,142.38,142.32,9.90304743]
[1764857008545,2.87683863,142.35,142.31,7.02684408]
[1764857008747,2.87683863,142.34,142.31,7.02684408]
[1764857008962,7.02563967,142.34,142.3,23.33607748]
[1764857009271,10.5824783,142.34,142.3,26.21291611]
[1764857010277,0.68,142.33,142.3,26.21291611]
[1764857010885,0.68,142.33,142.3,23.33607748]
[1764857011254,2.87683863,142.32,142.28,10.63683863]
[1764857011447,10.58279,142.33,142.29,0.72]
[1764857011682,3.55683863,142.33,142.29,3.59683863]
[1764857011886,0.68,142.33,142.29,3.59683863]
[1764857012390,0.68,142.33,142.3,7.02733378]
[1764857012592,9.9024807,142.34,142.3,10.62417241]
[1764857012593,2.87683863,142.34,142.3,10.62417241]
[1764857012900,3.55683863,142.34,142.3,10.62417241]
[1764857014267,3.55683863,142.34,142.3,7.74733378]
[1764857014468,2.87683863,142.33,142.3,7.02733378]
[1764857014686,3.55683863,142.33,142.3,7.02733378]
[1764857015766,3.55683863,142.33,142.29,24.59714318]
[1764857015967,3.55683863,142.33,142.29,25.31714318]
[1764857016872,2.87683863,142.31,142.29,7.02790076]
[1764857017274,3.55683863,142.31,142.29,7.02790076]
[1764857017491,2.87683863,142.31,142.29,7.02790076]
[1764857018796,2.87683863,142.33,142.29,7.02790076]
[1764857019092,2.87683863,142.34,142.29,9.90473939]
[1764857019770,2.87683863,142.34,142.29,27.4744913]
[1764857020090,2.87683863,142.35,142.3,2.87683863]
[1764857021270,2.87683863,142.34,142.29,27.4744913]
[1764857021685,7.02501004,142.35,142.29,27.4744913]
[1764857021992,2.87683863,142.34,142.29,27.4744913]
[1764857022592,3.53683863,142.34,142.3,0.69]
[1764857023679,2.87683863,142.34,142.3,0.69]
[1764857023988,7.69298083,142.39,142.34,16.308864]
[1764857024302,3.54683863,142.39,142.34,26.94570263]
[1764857024804,3.54683863,142.39,142.35,0.69]
[1764857025001,0.67,142.39,142.35,0.69]
[1764857025182,3.54683863,142.39,142.35,0.69]
[1764857025580,0.67,142.39,142.35,0.69]
[1764857025781,0.67,142.39,142.34,26.94570263]
[1764857025782,0.67,142.38,142.36,7.02444506]
[1764857026476,0.67,142.41,142.36,7.71444506]
[1764857026688,3.54683863,142.4,142.36,25.27555773]
[1764857027400,0.67,142.4,142.36,28.15239636]
[1764857027698,3.54683863,142.42,142.37,3.56683863]
[1764857027883,3.54683863,142.42,142.38,7.02345835]
[1764857028089,0.67,142.42,142.38,7.71345835]
[1764857028287,3.54683863,142.42,142.38,7.71345835]
[1764857028497,0.67,142.42,142.38,25.27210422]
[1764857028704,0.87,142.44,142.39,0.69]
[1764857028906,3.74683863,142.44,142.39,3.56683863]
[1764857029085,3.07683863,142.44,142.39,3.56683863]
[1764857029286,0.67,142.43,142.39,3.56683863]
[1764857029787,0.67,142.43,142.4,7.02247191]
[1764857030518,3.07683863,142.44,142.4,33.02865168]
[1764857030686,3.74683863,142.44,142.4,33.02865168]
[1764857032613,0.2,142.44,142.4,35.21549031]
[1764857032789,0.67,142.43,142.4,32.33865168]
[1764857032994,3.74683863,142.44,142.4,33.02865168]
[1764857034184,3.07683863,142.44,142.4,33.02865168]
[1764857034402,0.67,142.43,142.4,33.02865168]
[1764857035608,2.87683863,142.43,142.4,7.71222636]
[1764857035784,0.87,142.44,142.4,7.71222636]
[1764857035991,3.74683863,142.44,142.4,7.02222636]
[1764857036185,0.67,142.43,142.4,7.02222636]
[1764857036709,3.54683863,142.43,142.4,7.02222636]
[1764857037407,3.54683863,142.43,142.39,24.57960789]
[1764857037612,3.54683863,142.43,142.39,25.26960789]
[1764857038312,0.67,142.42,142.39,25.26960789]
[1764857040411,2.87683863,142.43,142.39,24.57960789]
[1764857040617,3.54683863,142.43,142.39,28.14644652]
[1764857040816,3.54683863,142.43,142.39,25.26960789]
[1764857041014,0.67,142.43,142.39,24.57960789]
[1764857041319,0.67,142.43,142.4,0.69]
[1764857042096,3.54683863,142.43,142.39,24.57960789]
[1764857042305,3.54683863,142.43,142.39,25.26960789]
[1764857042515,0.2,142.44,142.4,5.17754925]
[1764857042812,0.2,142.44,142.42,7.02148574]
[1764857042990,0.2,142.44,142.39,62.3]
[1764857042991,4.48754925,142.43,142.39,62.3]
[1764857043189,4.48754925,142.42,142.39,69.32281717]
[1764857043507,4.48754925,142.4,142.36,7.02416139]
[1764857043710,4.48754925,142.38,142.36,7.02416139]
[1764857043915,0.67,142.38,142.36,7.02428962]
[1764857044217,5.15754925,142.38,142.36,7.02428962]
[1764857044416,4.48754925,142.39,142.37,7.02395167]
[1764857045018,4.48754925,142.41,142.37,8.43]
[1764857045189,4.48754925,142.38,142.36,7.02444506]
[1764857045395,4.48754925,142.37,142.35,14.76478229]
[1764857045914,5.15754925,142.37,142.35,7.02478229]
[1764857046405,5.15754925,142.36,142.34,7.02521528]
[1764857047001,4.48754925,142.37,142.34,7.02521528]
[1764857047216,17.55494698,142.41,142.34,7.02521528]
[1764857047217,4.48754925,142.38,142.34,7.02521528]
[1764857047721,0.67,142.38,142.34,7.71521528]
[1764857048021,5.15754925,142.4,142.35,0.69]
[1764857048321,5.15754925,142.4,142.35,5.17754925]
[1764857048619,0.67,142.39,142.35,5.17754925]
[1764857048798,5.15754925,142.4,142.36,0.69]
[1764857048999,4.48754925,142.4,142.37,7.02395167]
[1764857049212,0.67,142.39,142.37,7.02395167]
[1764857049623,4.48754925,142.38,142.36,7.02432913]
[1764857051824,5.15754925,142.37,142.32,7.0260705]
[1764857052021,4.48754925,142.34,142.31,14.78670532]
[1764857052221,4.48754925,142.34,142.32,7.02623123]
[1764857052399,4.48754925,142.35,142.32,7.02623123]
[1764857052605,5.15754925,142.35,142.32,7.02623123]
[1764857052815,5.14754925,142.34,142.32,7.02623123]
[1764857054327,4.48754925,142.34,142.32,7.02623123]
[1764857054519,5.14754925,142.34,142.32,7.02623123]
[1764857056030,4.48754925,142.34,142.32,7.02623123]
[1764857057630,5.14754925,142.34,142.31,14.78669621]
[1764857059430,5.14754925,142.34,142.31,15.47669621]
[1764857060422,5.14754925,142.34,142.31,14.78669621]
[1764857062545,5.14754925,142.33,142.31,7.02669621]
[1764857062841,4.48754925,142.32,142.31,7.02669621]
[1764857063554,4.48754925,142.32,142.3,7.02740688]
[1764857064434,0.66,142.33,142.3,7.02740688]
[1764857064435,5.14754925,142.33,142.3,7.02740688]
[1764857064645,5.14754925,142.34,142.3,7.71740688]
[1764857065132,4.48754925,142.33,142.3,7.02740688]
[1764857065335,5.14754925,142.33,142.3,7.02740688]
[1764857065738,5.14754925,142.33,142.3,7.71740688]
[1764857067651,7.02445646,142.36,142.31,7.76]
[1764857067835,4.48754925,142.35,142.31,8.45]
[1764857068068,4.48754925,142.34,142.31,8.45]
[1764857068539,5.14754925,142.34,142.31,8.45]
[1764857069053,5.14754925,142.34,142.32,7.02641933]
[1764857069255,4.48754925,142.34,142.32,7.02641933]
[1764857071353,5.14754925,142.35,142.32,7.02641933]
[1764857072266,4.48754925,142.35,142.32,7.02641933]
[1764857072466,4.48754925,142.34,142.32,7.02641933]
[1764857073760,5.14754925,142.33,142.31,14.78669039]
[1764857073935,5.14754925,142.33,142.31,7.02669039]
[1764857074139,5.14754925,142.32,142.31,7.02669039]
[1764857074453,4.48754925,142.33,142.31,7.02669039]
[1764857074758,5.14754925,142.33,142.31,7.02669039]
[1764857075266,5.14754925,142.32,142.29,20.51834485]
[1764857075440,4.48754925,142.3,142.29,20.51834485]
[1764857075954,5.14754925,142.3,142.29,20.51834485]
[1764857077858,4.48754925,142.31,142.29,20.51834485]
[1764857078048,5.14754925,142.31,142.29,20.51834485]
[1764857078465,5.14754925,142.3,142.29,20.51834485]
[1764857079464,12.17495613,142.3,142.29,20.51834485]
[1764857080970,5.14754925,142.3,142.29,20.51834485]
[1764857083570,4.48754925,142.3,142.29,20.51834485]
[1764857083967,5.14754925,142.3,142.29,20.51834485]
[1764857084368,5.14754925,142.3,142.26,14.78933554]
[1764857084369,12.17529401,142.3,142.26,14.78933554]
[1764857084550,4.48754925,142.27,142.23,4.48754925]
[1764857084750,4.48754925,142.27,142.23,7.76]
[1764857084946,5.14754925,142.27,142.23,8.47]
[1764857085151,4.48754925,142.28,142.24,12.22792045]
[1764857085360,4.48754925,142.28,142.24,29.80384845]
[1764857085557,4.48754925,142.28,142.24,24.6062992]
[1764857085558,0.66,142.27,142.24,24.6062992]
[1764857085875,0.66,142.27,142.24,25.3162992]
[1764857086256,5.14754925,142.28,142.24,25.3162992]
[1764857088978,4.48754925,142.28,142.25,0.71]
[1764857089275,5.14754925,142.28,142.26,7.02938282]
[1764857089656,4.48754925,142.27,142.25,7.02973443]
[1764857089961,5.14754925,142.27,142.25,7.02973443]
[1764857091174,5.14754925,142.27,142.23,75.25754925]
[1764857091375,11.51652912,142.27,142.24,7.0303712]
[1764857091561,4.48754925,142.25,142.23,7.03067918]
[1764857092469,5.14754925,142.24,142.22,16.308864]
[1764857092661,4.48754925,142.23,142.2,7.03206088]
[1764857092860,4.48754925,142.22,142.2,7.03206088]
[1764857093171,5.14754925,142.22,142.2,7.03206088]
[1764857093374,5.14754925,142.21,142.18,0.1]
[1764857093562,5.14754925,142.2,142.18,0.1]
[1764857093883,4.48754925,142.19,142.18,0.1]
[1764857094756,5.14754925,142.2,142.18,0.1]
[1764857095593,4.48754925,142.19,142.18,0.1]
[1764857095878,5.14754925,142.19,142.18,0.1]
[1764857097183,0.66,142.19,142.18,0.1]
[1764857097371,5.14754925,142.19,142.18,0.1]
[1764857097853,4.48754925,142.19,142.18,0.1]
[1764857099380,5.14754925,142.2,142.18,7.13333802]
[1764857100079,4.48754925,142.21,142.18,7.13333802]
[1764857100284,12.24754925,142.22,142.18,7.13333802]
[1764857100461,7.03202091,142.25,142.19,0.71]
[1764857100661,4.48754925,142.23,142.19,24.068864]
[1764857100885,4.48754925,142.23,142.19,17.018864]
[1764857101062,0.66,142.22,142.19,16.308864]
[1764857101263,5.14754925,142.22,142.18,14.89333802]
[1764857101461,5.14754925,142.22,142.18,15.60333802]
[1764857101689,5.14754925,142.22,142.18,7.86]
[1764857101690,5.14754925,142.21,142.18,7.86]
[1764857101893,5.14754925,142.21,142.18,14.89333217]
[1764857103103,4.48754925,142.19,142.18,0.1]
[1764857104008,5.14754925,142.19,142.18,0.1]
[1764857104605,3.54204612,142.19,142.18,0.1]
[1764857105698,0.66,142.22,142.18,0.1]
[1764857105900,3.54204612,142.22,142.18,7.84333802]
[1764857106098,9.91291161,142.23,142.18,10.72538414]
[1764857106398,2.88204612,142.23,142.19,0.71]
[1764857106589,2.88204612,142.24,142.19,3.59204612]
[1764857106972,7.69043665,142.24,142.18,24.71668307]
[1764857107178,2.88204612,142.22,142.18,7.13333802]
[1764857107478,2.88204612,142.2,142.18,7.13333802]
[1764857107680,2.88204612,142.21,142.18,7.13333802]
[1764857108093,3.54204612,142.21,142.18,7.13333802]
[1764857108402,0.66,142.21,142.18,7.13333802]
[1764857108599,3.54204612,142.23,142.19,0.71]
[1764857108794,0.66,142.22,142.18,10.72538414]
[1764857108996,3.54204612,142.22,142.18,7.84333802]
[1764857109714,2.88204612,142.22,142.2,7.0323488]
[1764857109915,2.88204612,142.23,142.2,7.0323488]
[1764857110510,2.88204612,142.23,142.2,7.7423488]
[1764857110816,2.88204612,142.23,142.2,7.0323488]
[1764857110986,3.54204612,142.23,142.2,7.0323488]
[1764857111180,0.66,142.23,142.2,7.0323488]
[1764857111386,3.54204612,142.23,142.2,7.0323488]
[1764857111591,2.88204612,142.21,142.18,0.1]
[1764857111813,2.88204612,142.2,142.18,0.1]
[1764857112304,2.88204612,142.19,142.18,0.1]
[1764857112481,3.54204612,142.19,142.18,0.1]
[1764857112881,2.88204612,142.2,142.18,0.1]
[1764857113152,3.54204612,142.2,142.18,0.1]
[1764857113588,0.66,142.2,142.18,0.1]
[1764857113789,3.54204612,142.2,142.18,0.1]
[1764857115115,0.66,142.22,142.18,7.13325458]
[1764857115406,17.57475392,142.25,142.18,18.4953007]
[1764857115407,0.66,142.24,142.18,18.4953007]
[1764857115607,2.88204612,142.23,142.19,0.72]
[1764857116390,2.88204612,142.23,142.2,7.0323488]
[1764857116590,3.54204612,142.23,142.2,7.0323488]
[1764857117707,2.88204612,142.25,142.21,0.72]
[1764857117906,2.88204612,142.25,142.2,7.0323488]
[1764857118107,2.88204612,142.21,142.19,7.03278367]
[1764857118505,2.88204612,142.22,142.19,7.03278367]
[1764857118825,2.88204612,142.22,142.19,7.75278367]
[1764857119037,2.88204612,142.23,142.19,24.61489211]
[1764857119201,2.88204612,142.23,142.2,0.72]
[1764857119404,3.54204612,142.23,142.2,0.72]
[1764857119720,2.88204612,142.23,142.19,24.61489211]
[1764857119919,3.54204612,142.23,142.19,25.33489211]
[1764857121125,3.54204612,142.23,142.19,7.75278367]
[1764857121320,2.88204612,142.22,142.19,7.75278367]
[1764857121520,3.54204612,142.22,142.19,7.03278367]
[1764857121709,2.88204612,142.23,142.19,7.03278367]
[1764857122027,2.88204612,142.23,142.2,0.72]
[1764857123135,2.88204612,142.23,142.21,7.03185429]
[1764857123298,0.66,142.25,142.21,7.03185429]
[1764857123498,46.66291182,142.31,142.22,11.36204612]
[1764857123499,3.54204612,142.27,142.22,11.36204612]
[1764857123803,2.88204612,142.27,142.21,27.49353615]
[1764857124002,2.88204612,142.26,142.22,7.76]
[1764857124399,3.54204612,142.26,142.22,8.48]
[1764857125528,7.0286684,142.28,142.23,7.03086549]
[1764857125729,2.88204612,142.27,142.23,25.32802923]
[1764857125907,3.54204612,142.27,142.23,25.32802923]
[1764857126815,2.88204612,142.28,142.24,0.72]
[1764857127016,3.54204612,142.28,142.24,0.72]
[1764857127416,2.88204612,142.29,142.24,0.72]
[1764857127631,2.88204612,142.29,142.25,7.02987697]
[1764857128018,0.66,142.28,142.25,7.02987697]
[1764857128704,3.54204612,142.28,142.25,7.02987697]
[1764857131129,2.88204612,142.29,142.26,0.72]
[1764857131329,2.88204612,142.29,142.25,25.32456941]
[1764857131827,3.54204612,142.29,142.25,33.08456941]
[1764857133125,3.54204612,142.28,142.25,32.36456941]
[1764857133733,2.88204612,142.28,142.25,32.36456941]
[1764857134037,3.54204612,142.28,142.25,32.36456941]
[1764857135319,2.88204612,142.27,142.25,7.02987697]
[1764857135524,3.54204612,142.27,142.25,7.02987697]
[1764857137032,3.54204612,142.28,142.25,7.02987697]
[1764857137423,3.54204612,142.3,142.26,0.72]
[1764857137619,2.88204612,142.31,142.26,3.60204612]
[1764857137811,0.66,142.31,142.27,0.72]
[1764857138231,0.66,142.31,142.27,8.48]
[1764857138426,10.56818077,142.33,142.27,11.36204612]
[1764857138635,10.56818077,142.33,142.28,0.72]
[1764857138843,3.54204612,142.33,142.28,0.72]
[1764857139140,0.66,142.36,142.31,19.19091012]
[1764857139340,3.54204612,142.36,142.31,2.88204612]
[1764857139528,3.54204612,142.36,142.32,7.02641933]
[1764857139840,0.66,142.35,142.32,7.02641933]
[1764857141618,2.88204612,142.36,142.32,24.59246767]
[1764857141840,3.54204612,142.37,142.33,0.72]
[1764857142041,0.66,142.37,142.33,3.60204612]
[1764857142430,9.90537815,142.39,142.34,0.72]
[1764857142632,0.66,142.38,142.34,3.60204612]
[1764857142932,3.54204612,142.39,142.34,3.60204612]
[1764857143124,0.66,142.38,142.34,0.68]
[1764857143551,0.66,142.38,142.34,3.56204612]
[1764857143733,3.54204612,142.38,142.34,0.68]
[1764857144345,3.54204612,142.37,142.32,51.54337779]
[1764857144642,2.88204612,142.36,142.32,48.66133167]
[1764857144846,3.54204612,142.36,142.32,49.34133167]
[1764857145438,0.66,142.35,142.32,48.66133167]
[1764857146038,0.66,142.35,142.32,49.34133167]
[1764857146439,3.54204612,142.35,142.32,31.09528333]
[1764857146641,3.54204612,142.35,142.32,23.33528333]
[1764857146820,3.54204612,142.34,142.32,16.308864]
[1764857147027,3.54204612,142.34,142.32,23.33523589]
[1764857147226,0.66,142.33,142.32,7.02637189]
[1764857148050,0.66,142.33,142.31,7.02691307]
[1764857148452,3.54204612,142.35,142.31,7.02691307]
[1764857148630,2.88204612,142.35,142.31,7.02691307]
[1764857148822,0.7,142.34,142.31,7.02691307]
[1764857149028,7.02460704,142.36,142.31,25.30419576]
[1764857149029,0.7,142.36,142.31,25.30419576]
[1764857149227,2.88204612,142.36,142.32,0.71]
[1764857149439,2.88204612,142.36,142.31,24.59419576]
[1764857149440,3.58204612,142.36,142.31,24.59419576]
[1764857149626,2.88204612,142.34,142.31,7.02691307]
[1764857150028,3.58204612,142.34,142.31,7.02691307]
[1764857150521,2.88204612,142.35,142.31,7.02691307]
[1764857150724,2.88204612,142.36,142.31,9.90895919]
[1764857150924,2.88204612,142.35,142.31,7.02691307]
[1764857151125,2.88204612,142.35,142.31,24.59419576]
[1764857151329,0.7,142.34,142.31,7.02691307]
[1764857151923,3.58204612,142.36,142.31,10.61895919]
[1764857152128,0.7,142.35,142.31,10.61895919]
[1764857152653,2.88204612,142.36,142.32,0.71]
[1764857152849,3.58204612,142.36,142.32,0.71]
[1764857153042,3.58204612,142.36,142.33,7.02592566]
[1764857153556,0.7,142.35,142.33,7.02592566]
[1764857154551,0.7,142.35,142.32,7.0262528]
[1764857154728,3.58204612,142.35,142.32,7.0262528]
[1764857155346,3.58204612,142.35,142.31,24.59419576]
[1764857155554,3.58204612,142.35,142.31,25.30419576]
[1764857156255,3.58204612,142.35,142.32,0.71]
[1764857156459,3.58204612,142.35,142.31,25.30419576]
[1764857157141,0.7,142.37,142.33,2.88204612]
[1764857157345,3.58204612,142.37,142.34,7.02543206]
[1764857157731,0.7,142.36,142.34,7.02543206]
[1764857157930,3.58204612,142.38,142.34,7.73543206]
[1764857158144,0.7,142.38,142.34,17.66747818]
[1764857158349,0.7,142.38,142.35,0.71]
[1764857158539,0.7,142.38,142.34,35.94105834]
[1764857158927,2.88204612,142.39,142.35,0.71]
[1764857159448,3.58204612,142.39,142.36,7.02444506]
[1764857160356,2.88204612,142.4,142.36,7.73444506]
[1764857160650,0.7,142.39,142.36,7.02444506]
[1764857160851,2.88204612,142.4,142.36,7.73444506]
[1764857161042,3.58204612,142.4,142.36,7.73444506]
[1764857161429,0.7,142.39,142.36,7.02444506]
[1764857162230,3.58204612,142.39,142.35,24.58668538]
[1764857162756,0.7,142.38,142.35,24.58668538]
[1764857163066,2.88204612,142.37,142.34,69.32528971]
[1764857163236,2.88204612,142.37,142.34,7.02528971]
[1764857163438,3.58204612,142.37,142.34,7.02528971]
[1764857164854,0.7,142.36,142.34,7.02528971]
[1764857165066,2.88204612,142.35,142.3,63.01]
[1764857165242,0.7,142.36,142.29,25.3290016]
[1764857165243,2.88204612,142.33,142.29,25.3290016]
[1764857165446,2.88204612,142.32,142.29,25.3290016]
[1764857165647,2.88204612,142.32,142.29,17.5690016]
[1764857165945,2.88204612,142.33,142.29,18.2790016]
[1764857166160,2.88204612,142.32,142.3,7.02712426]
[1764857166364,4.49428982,142.32,142.3,7.02712426]
[1764857166560,5.19428982,142.32,142.3,7.02712426]
[1764857167064,7.02606999,142.33,142.29,7.02769539]
[1764857167364,5.19428982,142.31,142.29,7.02769539]
[1764857167542,4.49428982,142.31,142.29,7.02769539]
[1764857168337,4.49428982,142.34,142.29,29.09173712]
[1764857168553,0.7,142.35,142.3,0.71]
[1764857168835,7.02477749,142.36,142.3,0.71]
[1764857168836,4.49428982,142.34,142.3,0.71]
[1764857169257,5.19428982,142.34,142.3,0.71]
[1764857169861,5.19428982,142.34,142.31,7.02691307]
[1764857170058,30.0,142.32,142.31,7.02691307]
[1764857171139,5.19428982,142.34,142.31,7.02691307]
[1764857171340,0.7,142.33,142.31,7.02691307]
[1764857171534,0.7,142.33,142.29,25.30765267]
[1764857172143,4.49428982,142.31,142.27,78.608864]
[1764857172358,4.49428982,142.3,142.27,24.068864]
[1764857172545,4.49428982,142.3,142.27,7.76]
[1764857172860,5.20428982,142.3,142.27,7.76]
[1764857173057,0.71,142.3,142.28,7.02830077]
[1764857173256,7.02613651,142.33,142.28,7.02830077]
[1764857173461,0.71,142.35,142.29,5.16428982]
[1764857173763,12.22930189,142.35,142.31,7.02691307]
[1764857173961,30.0,142.32,142.31,7.02691307]
[1764857175459,0.71,142.34,142.31,7.02691307]
[1764857175961,5.20428982,142.36,142.32,0.67]
[1764857176164,30.0,142.33,142.32,0.67]
[1764857176363,5.20428982,142.36,142.32,0.67]
[1764857176662,5.20428982,142.37,142.32,5.16428982]
[1764857176862,0.71,142.36,142.32,5.16428982]
[1764857177063,0.71,142.36,142.32,0.67]
[1764857178267,5.20428982,142.36,142.33,7.02592566]
[1764857178660,0.71,142.39,142.34,5.16428982]
[1764857178859,0.71,142.39,142.35,4.49428982]
[1764857179052,0.71,142.39,142.35,5.16428982]
[1764857179253,5.20428982,142.39,142.33,33.02073982]
[1764857179562,5.20428982,142.39,142.33,37.51502964]
[1764857179752,7.73247191,142.4,142.36,4.49428982]
[1764857179956,0.71,142.4,142.36,12.25428982]
[1764857180161,0.71,142.39,142.36,12.25428982]
[1764857180364,0.71,142.39,142.37,7.02395167]
[1764857180859,30.0,142.38,142.37,7.02395167]
[1764857182448,5.20428982,142.4,142.37,7.02395167]
[1764857182665,0.71,142.39,142.37,7.02395167]
[1764857185275,4.49428982,142.4,142.37,7.02395167]
[1764857185457,0.71,142.39,142.37,7.02395167]
[1764857185660,0.71,142.39,142.36,15.45436318]
[1764857187981,0.71,142.39,142.36,14.78436318]
[1764857188272,5.20428982,142.39,142.36,14.78436318]
[1764857188676,0.71,142.39,142.36,14.78436318]
[1764857189701,0.71,142.39,142.34,7.02509833]
[1764857189702,4.49428982,142.37,142.34,7.02509833]
[1764857189991,4.49428982,142.36,142.33,24.59037076]
[1764857190193,4.49428982,142.37,142.33,7.02592566]
[1764857190490,4.49428982,142.34,142.29,17.56917594]
[1764857190658,4.49428982,142.34,142.27,7.02372104]
[1764857190659,4.49428982,142.31,142.27,7.02372104]
[1764857190968,4.49428982,142.32,142.28,0.67]
[1764857191361,5.20428982,142.32,142.29,7.02790076]
[1764857192784,4.49428982,142.34,142.3,8.43]
[1764857193173,5.20428982,142.34,142.3,8.43]
[1764857193366,5.20428982,142.33,142.3,7.76]
[1764857193572,4.49428982,142.31,142.28,7.02839471]
[1764857193889,4.49428982,142.3,142.28,7.02839471]
[1764857194677,4.49428982,142.3,142.27,24.60049117]
[1764857194879,4.49428982,142.31,142.27,25.27049117]
[1764857195887,0.71,142.3,142.27,25.27049117]
[1764857196076,5.20428982,142.31,142.27,25.27049117]
[1764857197085,4.49428982,142.31,142.27,25.27049117]
[1764857197291,0.71,142.3,142.27,25.27049117]
[1764857197998,12.23188878,142.3,142.26,7.76]
[1764857198212,4.49428982,142.28,142.26,14.78911204]
[1764857198577,5.20428982,142.29,142.26,14.78910798]
[1764857199083,5.20428982,142.29,142.27,7.02879308]
[1764857199912,4.49428982,142.29,142.27,7.02879308]
[1764857201217,5.20428982,142.28,142.26,14.78921798]
[1764857201395,0.71,142.28,142.26,14.78921798]
[1764857201800,5.17428982,142.29,142.26,14.78921798]
[1764857203408,0.7,142.3,142.26,19.9435078]
[1764857203619,5.19428982,142.3,142.26,15.44921798]
[1764857204103,5.19428982,142.3,142.26,33.02267503]
[1764857205003,7.02648364,142.32,142.26,36.85696485]
[1764857205188,5.19428982,142.31,142.27,0.66]
[1764857205911,0.7,142.3,142.27,0.66]
[1764857206413,0.7,142.3,142.28,14.78839471]
[1764857206588,30.0,142.29,142.28,14.78839471]
[1764857207115,0.7,142.3,142.28,14.78839471]
[1764857208298,5.19428982,142.3,142.28,7.02839471]
[1764857208500,4.49428982,142.29,142.26,94.6623856]
[1764857208703,5.19428982,142.29,142.26,94.6623856]
[1764857208909,0.7,142.29,142.28,7.02839471]
[1764857209109,0.7,142.3,142.28,7.02839471]
[1764857209408,5.19428982,142.3,142.28,7.02839471]
[1764857210281,5.19428982,142.3,142.27,7.02888873]
[1764857210684,5.19428982,142.31,142.28,0.66]
[1764857211116,4.49428982,142.33,142.28,12.91428982]
[1764857211418,0.7,142.32,142.28,12.91428982]
[1764857211914,5.19428982,142.34,142.29,5.15428982]
[1764857212419,0.7,142.33,142.3,25.25592409]
[1764857212619,0.7,142.33,142.3,24.59592409]
[1764857213284,4.49428982,142.32,142.3,7.02740688]
[1764857213713,5.19428982,142.32,142.3,7.02740688]
[1764857214291,0.7,142.32,142.29,24.59765267]
[1764857214494,4.49428982,142.34,142.29,29.75194249]
[1764857214698,0.7,142.32,142.29,25.25765267]
[1764857218291,0.7,142.32,142.29,29.75194249]
[1764857218697,4.49428982,142.3,142.25,79.268864]
[1764857218904,5.19428982,142.29,142.27,7.02860669]
[1764857219099,0.7,142.28,142.27,7.02860669]
[1764857219414,0.7,142.28,142.26,7.02938282]
[1764857221709,4.49428982,142.31,142.26,36.85712969]
[1764857221897,5.19428982,142.31,142.27,5.15428982]
[1764857222217,4.49428982,142.33,142.28,12.25428982]
[1764857222520,30.0,142.29,142.28,7.76]
[1764857222902,0.7,142.31,142.28,7.76]
[1764857223606,0.7,142.31,142.29,7.02790076]
[1764857223808,30.0,142.3,142.29,7.02790076]
[1764857224509,0.7,142.31,142.29,7.02790076]
[1764857225114,0.7,142.31,142.28,14.7882439]
[1764857225303,5.19428982,142.31,142.28,7.0282439]
[1764857225739,0.7,142.3,142.28,7.0282439]
[1764857226426,5.19428982,142.3,142.27,69.32883657]
[1764857226604,4.49428982,142.28,142.23,4.49428982]
[1764857226926,30.7,142.29,142.22,7.02555603]
[1764857227108,4.49428982,142.25,142.21,25.33888994]
[1764857227512,0.7,142.24,142.21,25.33888994]
[1764857227714,0.7,142.24,142.22,7.0312055]